[Event "55th Rubinstein Memorial-A 2019"]
[Site "Polanica-Zdroj"]
[Date "2019.08.19"]
[Round "3.9"]
[White "Mis, Mieszko"]
[Black "Majek, Kacper"]
[Result "1-0"]
[ECO "A20"]
[WhiteElo "2296"]
[BlackElo "1984"]
[Annotator "NA"]
[PlyCount "105"]
[EventDate "2019.08.17"]
[EventType "swiss"]
[EventCountry "POL"]
[SourceTitle "playchess.com"]
[Source "ChessBase"]
[SourceQuality "1"]
[TimeControl "40/5400+30:1800+30"]

1. c4 {[%emt 0:00:00]} e5 {[%emt 0:00:34]} 2. g3 {[%emt 0:00:00]} Nc6 {[%emt 0:00:19]} 3. Nc3 {[%emt 0:00:06]} f5 {[%emt 0:00:21]} 4. Nf3 {[%emt 0:00:37]} Nf6 {[%emt 0:00:12]} 5. d4 {[%emt 0:00:11]} e4 {[%emt 0:00:22]} 6. Nh4 {[%emt 0:00:10]} d6 {[%emt 0:01:24]} 7. Bh3 {[%emt 0:03:09]} g6 {[%emt 0:01:26]} 8. Bg5 {[%emt 0:00:24]} Bg7 {[%emt 0:01:52]} 9. Qd2 {[%emt 0:12:04]} O-O {[%emt 0:06:00]} 10. Nd5 {[%emt 0:06:20]} Qd7 {[%emt 0:14:18]} 11. Nxf6+ {[%emt 0:05:06]} Bxf6 {[%emt 0:00:20]} 12. Bxf6 {[%emt 0:00:13]} Rxf6 {[%emt 0:00:06]} 13. Ng2 {[%emt 0:00:15]} Rf8 {[%emt 0:02:11]} 14. Nf4 {[%emt 0:07:02]} Qf7 {[%emt 0:01:50]} 15. b3 {[%emt 0:12:07]} a5 {[%emt 0:06:52]} 16. O-O {[%emt 0:02:34]} Bd7 {[%emt 0:04:50]} 17. f3 {[%emt 0:04:39]} exf3 {[%emt 0:00:53]} 18. exf3 {[%emt 0:00:42]} Rfe8 {[%emt 0:02:37]} 19. Bg2 {[%emt 0:02:28]} Ne7 {[%emt 0:04:48]} 20. d5 g5 {[%emt 0:01:49]} 21. Ne6 {[%emt 0:06:21]} Bxe6 {[%emt 0:00:06]} 22. dxe6 {[%emt 0:01:52]} Qxe6 {[%emt 0:03:44]} 23. Qxg5+ {[%emt 0:00:29]} Qg6 {[%emt 0:02:15]} 24. Qd2 {[%emt 0:00:56]} Qf6 {[%emt 0:12:54]} 25. f4 {[%emt 0:01:29]} Nc6 {[%emt 0:00:05]} 26. Rad1 {[%emt 0:05:46]} Kg7 {[%emt 0:01:36]} 27. Rfe1 {[%emt 0:02:10]} h5 {[%emt 0:02:43]} 28. Rxe8 {[%emt 0:03:56]} Rxe8 {[%emt 0:00:06]} 29. Bxc6 {[%emt 0:00:04]} bxc6 {[%emt 0:00:12]} 30. Qxa5 {[%emt 0:00:08]} Re7 {[%emt 0:01:30]} 31. Re1 {[%emt 0:06:49]} Qd4+ {[%emt 0:00:15]} 32. Kg2 {[%emt 0:02:45]} Rxe1 {[%emt 0:12:31]} 33. Qxe1 {[%emt 0:00:03]} Qb2+ {[%emt 0:03:09]} 34. Qf2 {[%emt 0:00:23]} Qb1 {[%emt 0:01:12]} 35. Qe2 {[%emt 0:00:25]} Kf6 {[%emt 0:00:39]} 36. Kh3 {[%emt 0:02:02]} c5 {[%emt 0:01:55]} 37. Kh4 {[%emt 0:02:55]} Qa1 {[%emt 0:01:40]} 38. Qxh5 {[%emt 0:01:40]} Qxa2 {[%emt 0:00:10]} 39. Qg5+ {[%emt 0:01:14]} Ke6 {[%emt 0:00:06]} 40. Qg6+ {[%emt 0:00:00]} Ke7 {[%emt 0:00:00]} 41. Qxf5 {[%emt 0:02:56]} Qxh2+ {[%emt 0:00:55]} 42. Kg4 {[%emt 0:00:07]} Qb2 {[%emt 0:02:40]} 43. Qe4+ {[%emt 0:02:39]} Kf8 {[%emt 0:02:00]} 44. f5 {[%emt 0:01:51]} Qg7+ {[%emt 0:01:51]} 45. Kf3 {[%emt 0:01:30]} Qh6 {[%emt 0:02:27]} 46. Qh4 {[%emt 0:06:15]} Qxh4 {[%emt 0:02:05]} 47. gxh4 {[%emt 0:00:02]} c6 {[%emt 0:07:20]} 48. h5 {[%emt 0:01:08]} Kg8 {[%emt 0:03:00]} 49. Kf4 {[%emt 0:02:06]} Kg7 {[%emt 0:01:29]} 50. Kg5 {[%emt 0:02:04]} d5 {[%emt 0:00:06]} 51. cxd5 {[%emt 0:00:36]} cxd5 {[%emt 0:00:01]} 52. Kf4 {[%emt 0:00:06]} Kh6 {[%emt 0:06:52]} 53. f6 {[%emt 0:00:19]} 1-0

[Event "55th Rubinstein Memorial-A 2019"]
[Site "Polanica-Zdroj"]
[Date "2019.08.19"]
[Round "3.10"]
[White "Kaczmarek, Arkadiusz"]
[Black "Lapaj, Mateusz"]
[Result "1-0"]
[ECO "E92"]
[WhiteElo "1986"]
[BlackElo "2233"]
[Annotator "NA"]
[PlyCount "99"]
[EventDate "2019.08.17"]
[EventType "swiss"]
[EventCountry "POL"]
[SourceTitle "playchess.com"]
[Source "ChessBase"]
[SourceQuality "1"]
[TimeControl "40/5400+30:1800+30"]

1. d4 Nf6 {[%emt 0:03:38]} 2. c4 {[%emt 0:00:00]} g6 {[%emt 0:00:19]} 3. Nc3 {[%emt 0:00:00]} Bg7 {[%emt 0:00:04]} 4. e4 {[%emt 0:00:10]} d6 {[%emt 0:00:03]} 5. Nf3 {[%emt 0:00:20]} O-O {[%emt 0:00:06]} 6. Be2 {[%emt 0:00:12]} e5 {[%emt 0:00:05]} 7. Be3 {[%emt 0:00:29]} Ng4 {[%emt 0:00:07]} 8. Bg5 {[%emt 0:00:14]} f6 {[%emt 0:00:04]} 9. Bh4 {[%emt 0:00:16]} g5 {[%emt 0:00:06]} 10. Bg3 {[%emt 0:00:14]} Nh6 {[%emt 0:00:05]} 11. dxe5 {[%emt 0:01:51]} dxe5 {[%emt 0:02:55]} 12. Qxd8 {[%emt 0:00:25]} Rxd8 {[%emt 0:00:02]} 13. h4 {[%emt 0:00:18]} g4 {[%emt 0:03:46]} 14. Nd2 {[%emt 0:00:16]} Na6 {[%emt 0:13:38]} 15. O-O-O {[%emt 0:01:07]} Be6 {[%emt 0:05:14]} 16. a3 {[%emt 0:12:20]} Nc5 {[%emt 0:20:23]} 17. b4 {[%emt 0:04:05]} Nd3+ {[%emt 0:06:15]} 18. Kc2 {[%emt 0:00:36]} Nf4 {[%emt 0:00:15]} 19. Bxf4 {[%emt 0:01:09]} exf4 {[%emt 0:00:24]} 20. Nb3 {[%emt 0:00:19]} f5 {[%emt 0:16:28]} 21. Nc5 {[%emt 0:22:33]} Bf7 {[%emt 0:00:08]} 22. Nxb7 {[%emt 0:12:19]} Re8 {[%emt 0:09:09]} 23. e5 {[%emt 0:03:45]} Bxe5 {[%emt 0:00:59]} 24. Bd3 {[%emt 0:04:50]} f3 {[%emt 0:08:53]} 25. g3 {[%emt 0:07:44]} f4 {[%emt 0:06:52]} 26. gxf4 {[%emt 0:06:36]} Bxf4 {[%emt 0:01:27]} 27. Ne4 {[%emt 0:00:23]} Kg7 {[%emt 0:00:17]} 28. Rhg1 {[%emt 0:18:29]} Bxc4 {[%emt 0:00:56]} 29. Bxc4 {[%emt 0:00:27]} Rxe4 {[%emt 0:00:01]} 30. Rd7+ {[%emt 0:00:16]} Kf6 {[%emt 0:00:25]} 31. Bd3 {[%emt 0:02:55]} Re7 {[%emt 0:00:27]} 32. Rxe7 {[%emt 0:00:16]} Kxe7 {[%emt 0:00:01]} 33. Re1+ {[%emt 0:00:27]} Kf6 {[%emt 0:00:32]} 34. Nc5 {[%emt 0:00:37]} Rd8 {[%emt 0:01:24]} 35. Re6+ {[%emt 0:00:38]} Kf7 {[%emt 0:00:29]} 36. Bc4 {[%emt 0:00:37]} Rd2+ {[%emt 0:01:12]} 37. Kc3 {[%emt 0:00:05]} Kg7 {[%emt 0:00:39]} 38. Re7+ {[%emt 0:01:06]} Kg6 {[%emt 0:00:39]} 39. Re4 {[%emt 0:00:28]} Rxf2 {[%emt 0:00:25]} 40. Rxf4 {[%emt 0:00:00]} g3 {[%emt 0:00:00]} 41. Bd3+ {[%emt 0:09:19]} Kh5 {[%emt 0:09:42]} 42. Ne4 {[%emt 0:00:27]} Ng4 {[%emt 0:00:47]} 43. Nxf2 {[%emt 0:16:34]} Nxf2 {[%emt 0:00:27]} 44. Rxf3 {[%emt 0:00:19]} Kxh4 {[%emt 0:03:07]} 45. Bf1 {[%emt 0:02:23]} Kg4 {[%emt 0:04:55]} 46. Rf7 {[%emt 0:00:41]} h5 {[%emt 0:00:02]} 47. Rxc7 {[%emt 0:00:53]} h4 {[%emt 0:00:23]} 48. Rxa7 {[%emt 0:00:31]} h3 {[%emt 0:00:15]} 49. Rg7+ {[%emt 0:00:25]} Kf4 {[%emt 0:00:25]} 50. b5 {[%emt 0:01:10]} 1-0

[Event "55th Rubinstein Memorial-A 2019"]
[Site "Polanica-Zdroj"]
[Date "2019.08.19"]
[Round "3.11"]
[White "Wloch, Mikolaj"]
[Black "Goluch, Piotr"]
[Result "1/2-1/2"]
[ECO "B11"]
[WhiteElo "1771"]
[BlackElo "2418"]
[Annotator "NA"]
[PlyCount "106"]
[EventDate "2019.08.17"]
[EventType "swiss"]
[EventCountry "POL"]
[SourceTitle "playchess.com"]
[Source "ChessBase"]
[SourceQuality "1"]
[TimeControl "40/5400+30:1800+30"]

1. e4 {[%emt 0:00:00]} c6 {[%emt 0:00:00]} 2. Nf3 {[%emt 0:00:00]} d5 {[%emt 0:00:00]} 3. Nc3 {[%emt 0:00:11]} Bg4 {[%emt 0:00:00]} 4. Be2 {[%emt 0:01:17]} e6 {[%emt 0:00:19]} 5. d4 {[%emt 0:01:31]} Nd7 {[%emt 0:00:19]} 6. Be3 {[%emt 0:06:56]} Bb4 {[%emt 0:01:39]} 7. e5 {[%emt 0:03:05]} Ne7 {[%emt 0:04:35]} 8. h3 {[%emt 0:06:23]} Bxf3 {[%emt 0:03:21]} 9. Bxf3 {[%emt 0:00:10]} Nf5 {[%emt 0:00:05]} 10. O-O {[%emt 0:01:58]} Nxe3 {[%emt 0:03:13]} 11. fxe3 {[%emt 0:01:32]} Bxc3 {[%emt 0:00:04]} 12. bxc3 {[%emt 0:00:08]} Qa5 {[%emt 0:00:04]} 13. Qd3 {[%emt 0:02:20]} b5 {[%emt 0:05:54]} 14. e4 {[%emt 0:05:06]} Rc8 {[%emt 0:04:16]} 15. Bg4 {[%emt 0:05:36]} O-O {[%emt 0:01:31]} 16. Rf3 {[%emt 0:01:42]} Nb6 {[%emt 0:04:58]} 17. Raf1 {[%emt 0:01:52]} dxe4 {[%emt 0:04:23]} 18. Qxe4 {[%emt 0:00:11]} Qxa2 {[%emt 0:00:08]} 19. Bh5 {[%emt 0:04:38]} Rc7 {[%emt 0:14:09]} 20. Qh4 {[%emt 0:03:43]} Qd5 {[%emt 0:02:58]} 21. Rf4 {[%emt 0:02:28]} Nc8 {[%emt 0:04:37]} 22. Bf3 {[%emt 0:03:10]} Qd8 {[%emt 0:02:08]} 23. Qh5 {[%emt 0:00:52]} Ne7 {[%emt 0:01:42]} 24. Be4 {[%emt 0:01:01]} Ng6 {[%emt 0:01:01]} 25. g3 {[%emt 0:10:37]} Re8 {[%emt 0:06:27]} 26. R4f2 {[%emt 0:09:28]} b4 {[%emt 0:02:50]} 27. Qf3 {[%emt 0:01:48]} c5 {[%emt 0:00:10]} 28. dxc5 {[%emt 0:03:44]} bxc3 {[%emt 0:00:06]} 29. Qxc3 {[%emt 0:00:50]} Qg5 {[%emt 0:00:45]} 30. Bxg6 {[%emt 0:05:17]} hxg6 {[%emt 0:00:06]} 31. h4 {[%emt 0:00:12]} Qe7 {[%emt 0:00:19]} 32. Rxf7 {[%emt 0:01:50]} Qxf7 {[%emt 0:00:04]} 33. Rxf7 {[%emt 0:00:06]} Rxf7 {[%emt 0:00:22]} 34. Qd4 {[%emt 0:01:01]} a5 {[%emt 0:03:25]} 35. c6 {[%emt 0:02:56]} Kh7 {[%emt 0:11:34]} 36. Qe4 {[%emt 0:03:10]} Kg8 {[%emt 0:04:34]} 37. Qxg6 {[%emt 0:01:11]} Ree7 {[%emt 0:00:55]} 38. Qg4 {[%emt 0:01:44]} Rf8 {[%emt 0:03:07]} 39. Qc4 {[%emt 0:02:39]} Ra8 {[%emt 0:00:55]} 40. Qc5 {[%emt 0:00:00]} Ree8 {[%emt 0:00:00]} 41. Qa3 {[%emt 0:05:59]} a4 {[%emt 0:01:34]} 42. h5 {[%emt 0:01:05]} Kh7 {[%emt 0:04:30]} 43. Qd3+ {[%emt 0:02:39]} Kh8 {[%emt 0:00:01]} 44. h6 {[%emt 0:02:34]} Re7 {[%emt 0:11:59]} 45. Qd6 {[%emt 0:02:30]} Raa7 {[%emt 0:01:43]} 46. hxg7+ {[%emt 0:01:39]} Kxg7 {[%emt 0:00:06]} 47. Qd2 {[%emt 0:01:59]} Kg8 {[%emt 0:02:30]} 48. Qh6 {[%emt 0:01:40]} a3 {[%emt 0:00:37]} 49. Qg6+ {[%emt 0:00:45]} Kh8 {[%emt 0:00:03]} 50. Qh6+ {[%emt 0:00:09]} Kg8 {[%emt 0:00:04]} 51. Qg6+ {[%emt 0:00:06]} Rg7 {[%emt 0:03:01]} 52. Qe8+ {[%emt 0:00:15]} Kh7 {[%emt 0:00:03]} 53. Qh5+ {[%emt 0:00:11]} Kg8 {[%emt 0:00:02]} 1/2-1/2

[Event "55th Rubinstein Memorial-A 2019"]
[Site "Polanica-Zdroj"]
[Date "2019.08.19"]
[Round "3.12"]
[White "Hetzer, Volkhard"]
[Black "Kosakowski, Jakub"]
[Result "0-1"]
[ECO "A04"]
[WhiteElo "1931"]
[BlackElo "2401"]
[Annotator "NA"]
[PlyCount "82"]
[EventDate "2019.08.17"]
[EventType "swiss"]
[EventCountry "POL"]
[SourceTitle "playchess.com"]
[Source "ChessBase"]
[SourceQuality "1"]
[TimeControl "40/5400+30:1800+30"]

1. Nf3 {[%emt 0:00:00]} g6 {[%emt 0:02:49]} 2. c4 {[%emt 0:02:16]} Bg7 {[%emt 0:00:13]} 3. Nc3 {[%emt 0:00:12]} f5 {[%emt 0:00:17]} 4. g3 {[%emt 0:01:47]} Nf6 {[%emt 0:00:36]} 5. Bg2 {[%emt 0:01:05]} O-O {[%emt 0:00:13]} 6. O-O {[%emt 0:00:04]} d6 {[%emt 0:00:07]} 7. d3 {[%emt 0:02:53]} e5 {[%emt 0:01:39]} 8. Rb1 {[%emt 0:06:11]} Nbd7 {[%emt 0:07:24]} 9. b4 {[%emt 0:06:53]} c6 {[%emt 0:04:08]} 10. Nd2 {[%emt 0:22:23]} Qc7 {[%emt 0:17:01]} 11. a4 {[%emt 0:02:19]} Re8 {[%emt 0:01:08]} 12. a5 {[%emt 0:04:30]} a6 {[%emt 0:00:24]} 13. Bb2 {[%emt 0:04:42]} Nf8 {[%emt 0:02:13]} 14. b5 {[%emt 0:04:28]} Ne6 {[%emt 0:03:16]} 15. bxc6 {[%emt 0:02:22]} bxc6 {[%emt 0:00:08]} 16. Nb3 {[%emt 0:02:52]} Bd7 {[%emt 0:04:20]} 17. Na4 {[%emt 0:00:20]} Rad8 {[%emt 0:02:11]} 18. Nb6 {[%emt 0:00:14]} c5 {[%emt 0:00:29]} 19. e3 {[%emt 0:08:23]} Bc6 {[%emt 0:01:06]} 20. Nd5 {[%emt 0:03:47]} Qd7 {[%emt 0:02:29]} 21. Nxf6+ {[%emt 0:09:07]} Bxf6 {[%emt 0:00:18]} 22. Bxc6 {[%emt 0:00:01]} Qxc6 {[%emt 0:00:11]} 23. Qc2 {[%emt 0:00:21]} Ng5 {[%emt 0:00:25]} 24. e4 {[%emt 0:01:16]} fxe4 {[%emt 0:00:10]} 25. dxe4 {[%emt 0:00:04]} Nxe4 {[%emt 0:00:30]} 26. Qd3 {[%emt 0:00:55]} Ng5 {[%emt 0:03:16]} 27. Qd5+ {[%emt 0:00:42]} Qxd5 {[%emt 0:00:06]} 28. cxd5 {[%emt 0:00:02]} Nf3+ {[%emt 0:01:26]} 29. Kg2 {[%emt 0:00:03]} Rb8 {[%emt 0:00:12]} 30. Bc3 {[%emt 0:00:15]} Rb5 {[%emt 0:02:12]} 31. Nd2 {[%emt 0:02:02]} Nxd2 {[%emt 0:00:13]} 32. Bxd2 {[%emt 0:00:05]} Reb8 {[%emt 0:00:12]} 33. Rbc1 {[%emt 0:00:46]} Bd8 {[%emt 0:02:55]} 34. f4 {[%emt 0:01:33]} e4 {[%emt 0:04:59]} 35. f5 {[%emt 0:00:21]} Rb2 {[%emt 0:00:08]} 36. Rf2 {[%emt 0:00:15]} gxf5 {[%emt 0:00:10]} 37. Bf4 {[%emt 0:00:40]} Bxa5 {[%emt 0:01:37]} 38. Bxd6 {[%emt 0:00:07]} e3 {[%emt 0:00:11]} 39. Rxb2 {[%emt 0:00:11]} Rxb2+ {[%emt 0:00:04]} 40. Kf3 {[%emt 0:00:00]} e2 {[%emt 0:00:00]} 41. Be5 {[%emt 0:00:47]} Rc2 {[%emt 0:00:37]} 0-1

[Event "55th Rubinstein Memorial-A 2019"]
[Site "Polanica-Zdroj"]
[Date "2019.08.19"]
[Round "3.13"]
[White "Rak, Maciej"]
[Black "Marszalek, Maciej"]
[Result "0-1"]
[ECO "C88"]
[WhiteElo "1779"]
[BlackElo "2295"]
[Annotator "NA"]
[PlyCount "110"]
[EventDate "2019.08.17"]
[EventType "swiss"]
[EventCountry "POL"]
[SourceTitle "playchess.com"]
[Source "ChessBase"]
[SourceQuality "1"]
[TimeControl "40/5400+30:1800+30"]

1. e4 {[%emt 0:00:00]} e5 {[%emt 0:00:00]} 2. Nf3 {[%emt 0:00:00]} Nc6 {[%emt 0:00:00]} 3. Bb5 {[%emt 0:00:07]} a6 {[%emt 0:00:05]} 4. Ba4 {[%emt 0:00:11]} Nf6 {[%emt 0:00:24]} 5. O-O {[%emt 0:00:10]} b5 {[%emt 0:00:23]} 6. Bb3 {[%emt 0:00:07]} Be7 {[%emt 0:00:06]} 7. Re1 {[%emt 0:00:39]} O-O {[%emt 0:00:09]} 8. a4 {[%emt 0:00:47]} b4 {[%emt 0:00:58]} 9. d3 {[%emt 0:00:13]} d6 {[%emt 0:00:34]} 10. a5 {[%emt 0:00:08]} Rb8 {[%emt 0:00:28]} 11. Nbd2 {[%emt 0:02:06]} Be6 {[%emt 0:02:05]} 12. h3 {[%emt 0:04:41]} h6 {[%emt 0:03:50]} 13. Nc4 {[%emt 0:07:33]} Nh7 {[%emt 0:20:02]} 14. d4 {[%emt 0:16:48]} Nxd4 {[%emt 0:02:06]} 15. Nxd4 {[%emt 0:03:55]} exd4 {[%emt 0:00:04]} 16. Qxd4 {[%emt 0:02:27]} Rb5 {[%emt 0:01:22]} 17. Nd2 {[%emt 0:05:26]} Qc8 {[%emt 0:15:11]} 18. Bxe6 {[%emt 0:03:09]} fxe6 {[%emt 0:00:50]} 19. Nf1 {[%emt 0:07:02]} Bf6 {[%emt 0:04:53]} 20. Qd3 {[%emt 0:03:30]} Qe8 {[%emt 0:01:22]} 21. f4 {[%emt 0:04:13]} g5 {[%emt 0:01:13]} 22. e5 {[%emt 0:04:03]} dxe5 {[%emt 0:02:58]} 23. fxg5 {[%emt 0:00:12]} hxg5 {[%emt 0:08:34]} 24. Ng3 {[%emt 0:05:45]} e4 {[%emt 0:01:27]} 25. Nxe4 {[%emt 0:01:09]} Bg7 {[%emt 0:00:29]} 26. Bd2 {[%emt 0:08:53]} Qd8 {[%emt 0:07:58]} 27. Qxd8 {[%emt 0:05:24]} Rxd8 {[%emt 0:00:37]} 28. Ra4 {[%emt 0:00:47]} Rd4 {[%emt 0:02:15]} 29. Re2 {[%emt 0:06:35]} Nf8 {[%emt 0:09:26]} 30. Nxg5 {[%emt 0:05:53]} Rxd2 {[%emt 0:03:37]} 31. Rxd2 {[%emt 0:00:05]} Rxg5 {[%emt 0:00:02]} 32. Rxb4 {[%emt 0:01:23]} Rxa5 {[%emt 0:01:09]} 33. c3 {[%emt 0:00:53]} Kf7 {[%emt 0:03:42]} 34. Rb8 {[%emt 0:01:49]} Ra1+ {[%emt 0:00:48]} 35. Kh2 {[%emt 0:00:47]} Be5+ {[%emt 0:00:05]} 36. g3 {[%emt 0:00:04]} Bd6 {[%emt 0:00:29]} 37. Kg2 {[%emt 0:00:49]} Kg7 {[%emt 0:01:04]} 38. Rd8 {[%emt 0:00:41]} Re1 {[%emt 0:00:38]} 39. Kf2 {[%emt 0:00:29]} Re5 {[%emt 0:00:20]} 40. b4 {[%emt 0:00:00]} a5 {[%emt 0:00:00]} 41. Rb8 {[%emt 0:08:13]} axb4 {[%emt 0:01:33]} 42. cxb4 {[%emt 0:00:16]} Re4 {[%emt 0:01:42]} 43. b5 {[%emt 0:01:10]} Rb4 {[%emt 0:03:46]} 44. h4 {[%emt 0:10:02]} Nh7 {[%emt 0:07:01]} 45. Rd3 {[%emt 0:01:31]} Nf6 {[%emt 0:00:20]} 46. Kg2 {[%emt 0:02:40]} Nd5 {[%emt 0:01:13]} 47. Rf3 {[%emt 0:02:15]} Rb2+ {[%emt 0:02:33]} 48. Kh3 {[%emt 0:01:12]} Nf6 {[%emt 0:00:52]} 49. b6 {[%emt 0:01:56]} cxb6 {[%emt 0:02:17]} 50. Rb7+ {[%emt 0:00:23]} Kg6 {[%emt 0:00:26]} 51. h5+ {[%emt 0:02:28]} Nxh5 {[%emt 0:00:29]} 52. Rff7 {[%emt 0:00:45]} Rb3 {[%emt 0:01:04]} 53. Kh4 {[%emt 0:00:55]} Bxg3+ {[%emt 0:00:18]} 54. Kg4 {[%emt 0:00:17]} Nf6+ {[%emt 0:00:13]} 55. Kh3 {[%emt 0:00:09]} Bc7+ {[%emt 0:00:05]} 0-1

[Event "55th Rubinstein Memorial-A 2019"]
[Site "Polanica-Zdroj"]
[Date "2019.08.19"]
[Round "3.14"]
[White "Siekanski, Janusz"]
[Black "Praczukowski, Stanislaw"]
[Result "1/2-1/2"]
[ECO "D85"]
[WhiteElo "2263"]
[BlackElo "2126"]
[Annotator "NA"]
[PlyCount "67"]
[EventDate "2019.08.17"]
[EventType "swiss"]
[EventCountry "POL"]
[SourceTitle "playchess.com"]
[Source "ChessBase"]
[SourceQuality "1"]
[TimeControl "40/5400+30:1800+30"]

1. d4 {[%emt 0:00:00]} Nf6 {[%emt 0:00:00]} 2. c4 {[%emt 0:00:00]} g6 {[%emt 0:00:00]} 3. Nc3 {[%emt 0:00:09]} d5 {[%emt 0:00:00]} 4. cxd5 {[%emt 0:01:14]} Nxd5 {[%emt 0:00:00]} 5. e4 {[%emt 0:00:10]} Nxc3 {[%emt 0:00:00]} 6. bxc3 {[%emt 0:00:07]} Bg7 {[%emt 0:00:00]} 7. Be3 {[%emt 0:00:17]} c5 {[%emt 0:00:24]} 8. Qd2 {[%emt 0:00:27]} cxd4 {[%emt 0:00:35]} 9. cxd4 {[%emt 0:00:17]} Nc6 {[%emt 0:00:12]} 10. Bb5 {[%emt 0:08:37]} O-O {[%emt 0:04:14]} 11. Ne2 {[%emt 0:01:24]} Bd7 {[%emt 0:19:22]} 12. Rb1 {[%emt 0:05:10]} b6 {[%emt 0:05:32]} 13. O-O {[%emt 0:07:52]} Na5 {[%emt 0:02:17]} 14. Ba6 {[%emt 0:00:31]} Bc8 {[%emt 0:01:27]} 15. Bd3 {[%emt 0:02:59]} Bb7 {[%emt 0:04:12]} 16. Bh6 {[%emt 0:08:57]} Rc8 {[%emt 0:01:40]} 17. Bxg7 {[%emt 0:00:51]} Kxg7 {[%emt 0:00:05]} 18. Rfc1 {[%emt 0:07:35]} Qd7 {[%emt 0:02:36]} 19. d5 {[%emt 0:04:21]} Rxc1+ {[%emt 0:03:04]} 20. Rxc1 {[%emt 0:00:16]} Rc8 {[%emt 0:00:10]} 21. f4 {[%emt 0:08:17]} Rxc1+ {[%emt 0:03:31]} 22. Qxc1 {[%emt 0:00:21]} e6 {[%emt 0:01:30]} 23. Nd4 {[%emt 0:12:05]} exd5 {[%emt 0:03:17]} 24. e5 {[%emt 0:00:18]} Qa4 {[%emt 0:04:12]} 25. Nf3 {[%emt 0:07:15]} Qb4 {[%emt 0:06:10]} 26. Kh1 {[%emt 0:01:26]} d4 {[%emt 0:05:06]} 27. f5 {[%emt 0:00:32]} Bxf3 {[%emt 0:03:23]} 28. f6+ {[%emt 0:01:16]} Kg8 {[%emt 0:00:09]} 29. gxf3 {[%emt 0:01:02]} Qc5 {[%emt 0:02:42]} 30. Qh6 {[%emt 0:00:40]} Qf8 {[%emt 0:00:04]} 31. Qf4 {[%emt 0:03:58]} Qb4 {[%emt 0:01:53]} 32. Qh6 {[%emt 0:01:35]} Qf8 {[%emt 0:00:04]} 33. Qf4 {[%emt 0:00:43]} Qb4 {[%emt 0:00:53]} 34. Qh6 {[%emt 0:04:01]} 1/2-1/2

[Event "55th Rubinstein Memorial-A 2019"]
[Site "Polanica-Zdroj"]
[Date "2019.08.19"]
[Round "3.15"]
[White "Jaroch, Karol"]
[Black "Budkiewicz, Magdalena"]
[Result "1-0"]
[ECO "B40"]
[WhiteElo "2231"]
[BlackElo "1645"]
[Annotator "NA"]
[PlyCount "49"]
[EventDate "2019.08.17"]
[EventType "swiss"]
[EventCountry "POL"]
[SourceTitle "playchess.com"]
[Source "ChessBase"]
[SourceQuality "1"]
[TimeControl "40/5400+30:1800+30"]

1. e4 {[%emt 0:00:00]} c5 {[%emt 0:00:00]} 2. Nf3 {[%emt 0:00:00]} e6 {[%emt 0:00:10]} 3. b3 {[%emt 0:01:44]} a6 {[%emt 0:02:17]} 4. Bb2 {[%emt 0:00:22]} d6 {[%emt 0:03:30]} 5. d4 {[%emt 0:00:53]} cxd4 {[%emt 0:00:26]} 6. Nxd4 {[%emt 0:00:06]} Nf6 {[%emt 0:00:58]} 7. Bd3 {[%emt 0:00:29]} b5 {[%emt 0:05:10]} 8. a4 {[%emt 0:08:35]} b4 {[%emt 0:11:34]} 9. O-O {[%emt 0:01:30]} Bb7 {[%emt 0:01:28]} 10. Nd2 {[%emt 0:06:51]} Nbd7 {[%emt 0:02:50]} 11. Qe2 {[%emt 0:08:40]} Be7 {[%emt 0:02:30]} 12. f4 {[%emt 0:01:16]} O-O {[%emt 0:02:38]} 13. Rf3 {[%emt 0:18:08]} Nc5 {[%emt 0:07:22]} 14. Rh3 {[%emt 0:02:22]} d5 {[%emt 0:11:48]} 15. e5 {[%emt 0:03:47]} Nfe4 {[%emt 0:03:43]} 16. f5 {[%emt 0:10:23]} Nxd3 {[%emt 0:18:53]} 17. cxd3 {[%emt 0:00:10]} Nxd2 {[%emt 0:03:13]} 18. f6 {[%emt 0:01:04]} Bxf6 {[%emt 0:17:16]} 19. exf6 {[%emt 0:00:18]} Qxf6 {[%emt 0:02:08]} 20. Qxd2 {[%emt 0:00:09]} e5 {[%emt 0:00:19]} 21. Qxb4 {[%emt 0:00:48]} Bc8 {[%emt 0:01:33]} 22. Rf3 {[%emt 0:00:47]} Qg6 {[%emt 0:00:40]} 23. Rg3 {[%emt 0:00:28]} Qh6 {[%emt 0:00:31]} 24. Nf3 {[%emt 0:02:47]} f6 {[%emt 0:00:20]} 25. Qe7 {[%emt 0:01:15]} 1-0